fUST/lending_fUST_20240911
["ID","MTS","AMOUNT","RATE_DAILY","PERIOD"]
[337714674,1725985844873,-833.32,0.00016995,2]
[337714675,1725985844882,-833.32,0.00016996,2]
[337714676,1725985844892,-833.32,0.00016996,2]
[337714677,1725985844902,-833.32,0.00016997,2]
[337714678,1725985844911,-833.32,0.00016997,2]
[337714679,1725985844920,-833.32,0.00016998,2]
[337714680,1725985844929,-833.32,0.00016998,2]
[337714681,1725985844938,-833.32,0.00016998,2]
[337714682,1725985844948,-5228.6400581,0.00017005,2]
[337714683,1725985844957,-3860.35298233,0.00017005,2]
[337714684,1725985844967,-204.37974966,0.00017027,2]
[337714685,1725985844976,-204.37974966,0.00017095,2]
[337714686,1725985844985,-2451.59553852,0.00017163,2]
[337714687,1725985844995,-204.37974966,0.00017164,2]
[337714688,1725985845005,-830.45,0.00017261,2]
[337714689,1725985845014,-500.0,0.00017261,2]
[337714690,1725985845024,-5040.86,0.00017261,2]
[337714691,1725985845033,-685.21,0.00017261,2]
[337714692,1725985845042,-916.58,0.00017261,2]
[337714693,1725985845051,-577.21,0.00017261,2]
[337714694,1725985845060,-500.0,0.00017261,2]
[337714695,1725985845069,-500.0,0.00017261,2]
[337714696,1725985845078,-500.0,0.00017262,2]
[337714697,1725985845088,-500.0,0.00017262,2]
[337714698,1725985845098,-1414.47,0.00017262,2]
[337714699,1725985845107,-1132.64,0.00017262,2]
[337714700,1725985845116,-1009.0,0.00017262,2]
[337714701,1725985845126,-1632.3,0.00017262,2]
[337714702,1725985845135,-381.43711851,0.00017262,2]
[337714720,1725985923981,283.93616796,0.00015,7]
[337714721,1725986050188,200.0,0.00015,2]
[337714722,1725986068906,200.0,0.00015,2]
[337714723,1725986109839,600.54702456,0.00016001,2]
[337714725,1725986169366,3000.0,0.00015983,2]
[337714726,1725986170464,23124.1711364,0.00015983,2]
[337714727,1725986171457,-158.69315465,0.00040339,120]
[337714728,1725986171484,-1094.25550611,0.00040339,60]
[337714729,1725986171510,-3032.54,0.00040339,120]
[337714730,1725986171539,-68080.73446838,0.00040339,120]
[337714731,1725986171566,-2500.0,0.00040339,120]
[337714732,1725986171594,-176.5559673,0.00040339,120]
[337714733,1725986171623,-958.7351491,0.00040339,30]
[337714734,1725986171648,-226.80445526,0.00040339,30]
[337714735,1725986171674,-150.89649731,0.00040339,120]
[337714736,1725986171701,-5355.71739285,0.00040339,60]
[337714737,1725986171726,-412.8255456,0.00040339,120]
[337714738,1725986171752,-1145.07848531,0.00040339,120]
[337714739,1725986171777,-10700.0,0.00040339,38]
[337714740,1725986171803,-696.15,0.00040339,120]
[337714741,1725986171829,-3000.0,0.00040339,120]
[337714742,1725986171855,-10000.0,0.00040339,120]
[337714743,1725986171880,-10000.0,0.00040339,30]
[337714744,1725986171906,-184.5,0.00040339,30]
[337714745,1725986171933,-82126.51337813,0.00040339,30]
[337714746,1725986176997,-18002.30292615,0.00040339,30]
[337714747,1725986177022,-201019.25578208,0.00040339,120]
[337714748,1725986177046,-32013.65125052,0.00040339,30]
[337714749,1725986177069,-100000.0,0.00040339,45]
[337714750,1725986177093,-50000.0,0.00040339,45]
[337714751,1725986177118,-100000.0,0.00040339,45]
[337714752,1725986177141,-200000.0,0.00040339,45]
[337714753,1725986177164,-11192.42935,0.00040339,45]
[337714754,1725986177188,-21298.88779844,0.00040339,60]
[337714755,1725986177212,-36231.48758029,0.00040339,120]
[337714756,1725986192337,-4353.77578525,0.00022,30]
[337714757,1725986192415,-2000.0,0.00027,30]
[337714758,1725986192444,-500.0,0.00027945,31]
[337714759,1725986192469,-500.0,0.00027945,31]
[337714760,1725986192494,-500.0,0.00027945,31]
[337714761,1725986192518,-500.0,0.00027945,31]
[337714762,1725986192545,-500.0,0.00027945,31]
[337714763,1725986192569,-500.0,0.00027945,31]
[337714764,1725986192595,-500.0,0.00027945,31]
[337714765,1725986192620,-500.0,0.00027945,31]
[337714766,1725986192644,-500.0,0.00027945,31]
[337714767,1725986192668,-500.0,0.00027945,31]
[337714768,1725986192691,-500.0,0.00027945,31]
[337714769,1725986192716,-500.0,0.00027945,31]
[337714770,1725986192739,-500.0,0.00027945,31]
[337714771,1725986192762,-339.08060502,0.00027945,31]
[337714772,1725986192787,-500.0,0.00028,30]
[337714773,1725986192811,-500.0,0.00028,30]
[337714774,1725986192835,-500.0,0.00028,30]
[337714775,1725986192859,-500.0,0.00028,30]
[337714776,1725986192884,-500.0,0.00028,30]
[337714777,1725986192908,-496.66655533,0.00028,30]
[337714778,1725986192931,-169.790938,0.00028493,120]
[337714779,1725986192956,-23397.85137408,0.00029,30]
[337714780,1725986192981,-340.01596476,0.0003,120]
[337714781,1725986193005,-350.0,0.0003,30]
[337714782,1725986193029,-151.0,0.0003,120]
[337714783,1725986193053,-151.0,0.0003,120]
[337714784,1725986193077,-1013.67341591,0.0003,60]
[337714785,1725986193101,-279.43197653,0.0003,30]
[337714786,1725986193128,-1222.0522661,0.00031945,120]
[337714787,1725986193155,-1000.0,0.00032876,120]
[337714788,1725986193179,-1000.0,0.00032876,30]
[337714789,1725986193203,-1000.0,0.00032876,30]
[337714790,1725986193227,-1000.0,0.00032876,30]
[337714791,1725986193251,-1000.0,0.00032876,30]
[337714792,1725986193275,-352.56826936,0.00032876,30]
[337714793,1725986193307,-2492.03264007,0.00033,120]
[337714794,1725986193332,-326.01284937,0.00033131,120]
[337714795,1725986193357,-2547.99,0.000335,30]
[337714796,1725986193384,-1000.0,0.00033835,120]
[337714797,1725986193409,-200.0,0.00034,120]
[337714798,1725986193434,-1000.0,0.00034794,120]
[337714799,1725986193459,-500.0,0.00035,60]
[337714800,1725986193483,-10607.90075731,0.00035,30]
[337714801,1725986193507,-2547.99,0.000353,30]
[337714802,1725986193532,-1000.0,0.00035753,120]
[337714803,1725986193562,-151.0,0.00036,120]
[337714804,1725986193588,-467387.7302,0.00036699,30]
[337714805,1725986193614,-1000.0,0.00036712,120]
[337714806,1725986193641,-151.0,0.00037507,120]
[337714807,1725986193665,-1000.0,0.00037671,120]
[337714808,1725986193690,-1000.0,0.00038,31]
[337714809,1725986193717,-41446.43588283,0.00038,120]
[337714810,1725986193741,-50000.0,0.000385,30]
[337714811,1725986193765,-1000.0,0.0003863,120]
[337714812,1725986193789,-264.5514,0.00038699,30]
[337714813,1725986193815,-168.35,0.00039,120]
[337714814,1725986193841,-2547.99,0.00039,30]
[337714815,1725986193869,-1000.0,0.00039589,120]
[337714816,1725986193897,-150.0,0.0004,120]
[337714817,1725986193922,-6321.59780293,0.0004,120]
[337714818,1725986193947,-159.70931114,0.0004,30]
[337714819,1725986193972,-50000.0,0.0004,30]
[337714820,1725986193998,-300.0,0.0004,30]
[337714821,1725986194023,-500.0,0.0004,60]
[337714822,1725986194048,-200.0,0.0004,90]
[337714823,1725986194073,-369.0,0.0004,120]
[337714824,1725986194098,-1000.0,0.00040183,30]
[337714825,1725986194124,-600.0,0.00040315,30]
[337714826,1725986194151,-300.0,0.00040339,30]
[337714827,1725986194409,-600.0,0.0004034,30]
[337714828,1725986194435,-700.0,0.00040418,30]
[337714829,1725986194460,-500.0,0.0004053,30]
[337714830,1725986194484,-1000.0,0.00040547,120]
[337714831,1725986194508,-600.0,0.00040853,30]
[337714832,1725986194534,-600.0,0.00040877,30]
[337714833,1725986194563,-600.0,0.00040995,30]
[337714834,1725986194587,-399.999999,0.00041,120]
[337714835,1725986194611,-4025.88073758,0.00041,30]
[337714836,1725986194638,-1000.0,0.00041004,30]
[337714837,1725986194663,-4013.83245309,0.00041095,120]
[337714838,1725986194688,-160.0,0.00041096,30]
[337714839,1725986194717,-160.0,0.00041096,30]
[337714840,1725986194743,-160.0,0.00041096,30]
[337714841,1725986194771,-160.0,0.00041096,30]
[337714842,1725986194796,-160.0,0.00041096,30]
[337714843,1725986194821,-160.0,0.00041096,30]
[337714844,1725986194845,-160.0,0.00041096,30]
[337714845,1725986194870,-160.0,0.00041096,30]
[337714846,1725986194899,-160.55496974,0.00041096,30]
[337714847,1725986194924,-160.0,0.00041096,30]
[337714848,1725986194948,-198.30481452,0.00041096,30]
[337714849,1725986194972,-1000.0,0.0004117,30]
[337714850,1725986194997,-999.0,0.00041369,120]
[337714851,1725986195022,-600.0,0.00041482,30]
[337714852,1725986195046,-1000.0,0.00041506,120]
[337714853,1725986195069,-600.0,0.00041563,30]
[337714854,1725986195094,-500.0,0.0004162,30]
[337714855,1725986195119,-600.0,0.0004163,30]
[337714856,1725986195143,-200.0,0.000417,120]
[337714857,1725986195167,-153.0,0.00041918,120]
[337714858,1725986195192,-47505.5885591,0.00042,30]
[337714859,1725986195217,-151.0,0.00042,120]
[337714860,1725986195242,-700.0,0.00042206,30]
[337714861,1725986195267,-700.0,0.00042429,30]
[337714862,1725986195291,-1000.0,0.00042465,120]
[337714863,1725986195316,-600.0,0.00042483,30]
[337714864,1725986195342,-700.0,0.00042503,30]
[337714865,1725986195367,-1151.71187878,0.000427,120]
[337714866,1725986195392,-573.9,0.000427,120]
[337714867,1725986195417,-337.046451,0.00042898,120]
[337714868,1725986195442,-317.86307126,0.00043,120]
[337714869,1725986195467,-999.0,0.00043287,120]
[337714870,1725986195491,-1000.0,0.00043424,120]
[337714871,1725986195516,-500.0,0.00043517,30]
[337714872,1725986195542,-600.0,0.00043581,30]
[337714873,1725986195567,-600.0,0.00043642,30]
[337714874,1725986195609,-600.0,0.0004378,30]
[337714875,1725986195641,-1578.35,0.00043835,120]
[337714876,1725986195668,-1578.35,0.00043835,120]
[337714877,1725986195694,-1578.35,0.00043835,120]
[337714878,1725986195720,-1578.35,0.00043835,120]
[337714879,1725986195745,-1578.35,0.00043835,120]
[337714880,1725986195771,-1578.35,0.00043835,120]
[337714881,1725986195797,-1578.35,0.00043835,120]
[337714882,1725986195822,-1578.35,0.00043835,120]
[337714883,1725986195849,-1578.35,0.00043835,120]
[337714884,1725986195876,-1578.35,0.00043835,120]
[337714885,1725986195902,-1578.35,0.00043835,120]
[337714886,1725986195927,-1578.35,0.00043835,120]
[337714887,1725986195953,-1578.35,0.00043835,120]
[337714888,1725986195979,-1578.35,0.00043835,120]
[337714889,1725986196004,-1578.35,0.00043835,120]
[337714890,1725986196029,-1578.35,0.00043835,120]
[337714891,1725986196054,-1578.35,0.00043835,120]
[337714892,1725986196078,-1578.35,0.00043835,120]
[337714893,1725986196103,-1578.35,0.00043835,120]
[337714894,1725986196128,-1578.35,0.00043835,120]
[337714895,1725986196152,-1578.35,0.00043835,120]
[337714896,1725986196176,-1578.35,0.00043835,120]
[337714897,1725986196202,-1578.35,0.00043835,120]
[337714898,1725986196228,-1578.45117619,0.00043835,120]
[337714899,1725986196252,-2000.0,0.00043835,30]
[337714900,1725986196282,-2000.0,0.00043835,30]
[337714901,1725986196308,-2000.0,0.00043835,30]
[337714902,1725986196333,-2000.0,0.00043835,30]
[337714903,1725986196358,-1991.10268476,0.00043835,30]
[337714904,1725986196384,-1000.0,0.00043995,30]
[337714905,1725986196409,-10190.96387533,0.00044,30]
[337714906,1725986196434,-500.0,0.00044112,30]
[337714907,1725986196461,-700.0,0.00044113,30]
[337714908,1725986196487,-600.0,0.00044266,30]
[337714909,1725986196513,-500.0,0.0004429,30]
[337714910,1725986196538,-500.0,0.00044292,30]
[337714911,1725986196568,-1000.0,0.00044383,120]
[337714912,1725986196593,-1000.0,0.00044418,30]
[337714913,1725986196619,-500.0,0.00044424,30]
[337714914,1725986196645,-600.0,0.00044753,30]
[337714915,1725986196671,-700.0,0.00044991,30]
[337714916,1725986196697,-243.27,0.00045,30]
[337714917,1725986196723,-150.0,0.00045,120]
[337714918,1725986196749,-500.0,0.00045,120]
[337714919,1725986196773,-23828.58611518,0.00045,120]
[337714920,1725986196798,-500.0,0.0004501,30]
[337714921,1725986196823,-151.0,0.00045014,120]
[337714922,1725986196849,-700.0,0.00045023,30]
[337714923,1725986196875,-700.0,0.0004514,30]
[337714924,1725986196900,-999.0,0.00045205,120]
[337714925,1725986196925,-600.0,0.00045232,30]
[337714926,1725986196950,-600.0,0.00045306,30]
[337714927,1725986196974,-1000.0,0.00045342,120]
[337714928,1725986197003,-1000.0,0.00045467,30]
[337714929,1725986197028,-600.0,0.00045589,30]
[337714930,1725986197052,-1000.0,0.00045744,30]
[337714931,1725986197289,-169.57943732,0.000458,120]
[337714932,1725986197315,-1000.0,0.00045819,30]
[337714933,1725986197341,-510.64032445,0.00045894,30]
[337714934,1725986197366,-700.0,0.00045898,30]
[337714935,1725986197390,-500.0,0.00045964,30]
[337714936,1725986197415,-501.58887846,0.00045969,30]
[337714937,1725986197440,-1502.65,0.00046,30]
[337714938,1725986197464,-1046.531475,0.00046,30]
[337714939,1725986197488,-600.0,0.00046006,30]
[337714940,1725986197514,-327.58059183,0.0004606,120]
[337714941,1725986197539,-700.0,0.00046133,30]
[337714942,1725986197568,-500.0,0.0004616,30]
[337714943,1725986197594,-1000.0,0.00046301,120]
[337714944,1725986197618,-600.0,0.00046442,30]
[337714945,1725986197645,-700.0,0.00046549,30]
[337714946,1725986197670,-500.0,0.00046575,120]
[337714947,1725986197694,-1114.66177526,0.00046689,30]
[337714948,1725986197718,-515.26788598,0.00046758,30]
[337714949,1725986197741,-500.0,0.00046849,120]
[337714950,1725986197766,-600.0,0.00046938,30]
[337714951,1725986197791,-500.0,0.00047123,120]
[337714952,1725986197816,-999.0,0.00047123,120]
[337714953,1725986197840,-1000.0,0.0004726,120]
[337714954,1725986197867,-500.0,0.00047397,120]
[337714955,1725986197890,-1000.0,0.00047569,30]
[337714956,1725986197936,-500.0,0.00047671,120]
[337714957,1725986197966,-600.0,0.00047785,30]
[337714958,1725986197993,-600.0,0.00047842,30]
[337714959,1725986198020,-501.67599287,0.00047877,30]
[337714960,1725986198046,-153.07992583,0.00047915,67]
[337714961,1725986198072,-500.0,0.00047945,120]
[337714962,1725986198099,-500.0,0.00047945,45]
[337714963,1725986198129,-500.0,0.00047966,30]
[337714964,1725986198159,-737.0,0.00048,120]
[337714965,1725986198187,-3760.49513003,0.00048,120]
[337714966,1725986198214,-151.0,0.00048,120]
[337714967,1725986198241,-500.0,0.00048095,30]
[337714968,1725986198269,-192.60701855,0.00048219,120]
[337714969,1725986198296,-1000.0,0.00048219,120]
[337714970,1725986198324,-500.0,0.0004863,48]
[337714971,1725986198351,-600.0,0.00048676,30]
[337714972,1725986198378,-1000.0,0.0004875,30]
[337714973,1725986198405,-981.01640373,0.00048969,30]
[337714974,1725986198430,-24982.25250963,0.00049,120]
[337714975,1725986198458,-619.71498,0.00049,30]
[337714976,1725986198486,-1678.62,0.00049041,120]
[337714977,1725986198514,-1678.62,0.00049041,120]
[337714978,1725986198542,-1678.62,0.00049041,120]
[337714979,1725986198570,-1678.62,0.00049041,120]
[337714980,1725986198602,-1678.62,0.00049041,120]
[337714981,1725986198634,-1678.62,0.00049041,120]
[337714982,1725986198661,-1678.62,0.00049041,120]
[337714983,1725986198689,-1678.62,0.00049041,120]
[337714984,1725986198719,-1678.62,0.00049041,120]
[337714985,1725986198748,-1678.62,0.00049041,120]
[337714986,1725986198775,-1678.62,0.00049041,120]
[337714987,1725986198802,-1678.62,0.00049041,120]
[337714988,1725986198829,-1678.62,0.00049041,120]
[337714989,1725986198856,-1678.62,0.00049041,120]
[337714990,1725986198885,-1678.62,0.00049041,120]
[337714991,1725986198911,-1678.62,0.00049041,120]
[337714992,1725986198938,-1678.62,0.00049041,120]
[337714993,1725986198964,-1678.62,0.00049041,120]
[337714994,1725986198991,-1678.62,0.00049041,120]
[337714995,1725986199016,-1678.62,0.00049041,120]
[337714996,1725986199043,-1678.62,0.00049041,120]
[337714997,1725986199070,-1678.62,0.00049041,120]
[337714998,1725986199097,-1678.62,0.00049041,120]
[337714999,1725986199125,-1678.67108423,0.00049041,120]
[337715000,1725986199152,-999.0,0.00049041,120]
[337715001,1725986199179,-1000.0,0.00049078,30]
[337715002,1725986199207,-1688.06843683,0.00049101,30]
[337715003,1725986199234,-964.91319238,0.00049137,30]
[337715004,1725986199262,-337.046451,0.00049171,120]
[337715005,1725986199290,-1000.0,0.00049178,120]
[337715006,1725986199318,-500.0,0.00049315,51]
[337715007,1725986199347,-799.72554157,0.00049361,30]
[337715008,1725986199378,-507.42834674,0.0004946,30]
[337715009,1725986199408,-1000.0,0.0005,51]
[337715010,1725986199434,-500.0,0.0005,120]
[337715011,1725986199462,-10000.0,0.0005,120]
[337715012,1725986199488,-10000.0,0.0005,120]
[337715013,1725986199515,-10000.0,0.0005,120]
[337715014,1725986199543,-10000.0,0.0005,120]
[337715015,1725986199570,-10000.0,0.0005,120]
[337715016,1725986199596,-10000.0,0.0005,120]
[337715017,1725986199624,-10000.0,0.0005,120]
[337715018,1725986199649,-10000.0,0.0005,120]
[337715019,1725986199674,-10000.0,0.0005,120]
[337715020,1725986199700,-10000.0,0.0005,120]
[337715021,1725986199727,-10000.0,0.0005,120]
[337715022,1725986199751,-10000.0,0.0005,120]
[337715023,1725986199776,-10000.0,0.0005,120]
[337715024,1725986199800,-10000.0,0.0005,120]
[337715025,1725986199825,-10000.0,0.0005,120]
[337715026,1725986199851,-10000.0,0.0005,120]
[337715027,1725986199879,-10000.0,0.0005,120]
[337715028,1725986199906,-10000.0,0.0005,120]
[337715029,1725986199932,-10000.0,0.0005,120]
[337715030,1725986199958,-10000.0,0.0005,120]
[337715031,1725986199984,-10000.0,0.0005,120]
[337715032,1725986200009,-10000.0,0.0005,120]
[337715033,1725986200035,-10000.0,0.0005,120]
[337715034,1725986200060,-10000.0,0.0005,120]
[337715035,1725986200277,-10000.0,0.0005,120]
[337715036,1725986200303,-10000.0,0.0005,120]
[337715037,1725986200329,-10000.0,0.0005,120]
[337715038,1725986200355,-10000.0,0.0005,120]
[337715039,1725986200391,-10000.0,0.0005,120]
[337715040,1725986200416,-10000.0,0.0005,120]
[337715041,1725986200441,-10000.0,0.0005,120]
[337715042,1725986200466,-10000.0,0.0005,120]
[337715043,1725986200492,-10000.0,0.0005,120]
[337715044,1725986200517,-10000.0,0.0005,120]
[337715045,1725986200545,-10000.0,0.0005,120]
[337715046,1725986200571,-10000.0,0.0005,120]
[337715047,1725986200597,-10000.0,0.0005,120]
[337715048,1725986200622,-10000.0,0.0005,120]
[337715049,1725986200648,-10000.0,0.0005,120]
[337715050,1725986200674,-10000.0,0.0005,120]
[337715051,1725986200699,-10000.0,0.0005,120]
[337715052,1725986200726,-10000.0,0.0005,120]
[337715053,1725986200751,-10000.0,0.0005,120]
[337715054,1725986200776,-10000.0,0.0005,120]
[337715055,1725986200801,-10000.0,0.0005,120]
[337715056,1725986200826,-10000.0,0.0005,120]
[337715057,1725986200851,-10000.0,0.0005,120]
[337715058,1725986200879,-10000.0,0.0005,120]
[337715059,1725986200904,-10000.0,0.0005,120]
[337715060,1725986200934,-6612.93,0.0005,120]
[337715061,1725986200960,-1025.10837182,0.0005,120]
[337715062,1725986200986,-150.0,0.0005,120]
[337715063,1725986201011,-4080.1309,0.0005,30]
[337715064,1725986201036,-499.999999,0.0005,30]
[337715065,1725986201060,-1613.638635,0.0005,120]
[337715066,1725986201085,-166.28787274,0.0005,60]
[337715067,1725986201110,-610.94312188,0.0005,120]
[337715068,1725986201135,-500.0,0.0005,120]
[337715069,1725986201160,-150.0,0.0005,81]
[337715070,1725986201185,-43279.86986185,0.0005,120]
[337715071,1725986201211,-500.0,0.0005,54]
[337715072,1725986201236,-1000.0,0.00050136,120]
[337715073,1725986201262,-500.0,0.00050684,57]
[337715074,1725986201287,-999.0,0.00050958,120]
[337715075,1725986201313,-2547.99,0.00051,30]
[337715076,1725986201339,-150.0,0.00051,85]
[337715077,1725986201366,-3000.0,0.00051,85]
[337715078,1725986201393,-3000.0,0.0005101,85]
[337715079,1725986201420,-3000.0,0.0005102,85]
[337715080,1725986201447,-3000.0,0.0005103,85]
[337715081,1725986201473,-3000.0,0.0005104,85]
[337715082,1725986201498,-3000.0,0.0005105,85]
[337715083,1725986201523,-3000.0,0.0005106,85]
[337715084,1725986201550,-3000.0,0.0005107,85]
[337715085,1725986201576,-5211.194171,0.0005108,85]
[337715086,1725986201602,-1000.0,0.00051095,120]
[337715087,1725986201632,-408.0,0.000513,38]
[337715088,1725986201657,-500.0,0.00051369,60]
[337715089,1725986201684,-160.24,0.000515,48]
[337715090,1725986201713,-160.24,0.000515,48]
[337715091,1725986201739,-523.0,0.00051791,120]
[337715092,1725986201764,-650.27,0.00052,30]
[337715093,1725986201788,-150.0,0.00052,89]
[337715094,1725986201814,-10000.0,0.00052,60]
[337715095,1725986201839,-16778.093907,0.00052,60]
[337715096,1725986201867,-1000.0,0.00052054,120]
[337715097,1725986201895,-2671.89,0.00052054,120]
[337715098,1725986201921,-500.0,0.00052054,63]
[337715099,1725986201947,-500.0,0.00052054,120]
[337715100,1725986201972,-500.0,0.00052054,120]
[337715101,1725986201998,-500.0,0.00052054,120]
[337715102,1725986202023,-500.0,0.00052054,120]
[337715103,1725986202049,-500.0,0.00052054,120]
[337715104,1725986202075,-500.0,0.00052054,120]
[337715105,1725986202100,-500.0,0.00052054,120]
[337715106,1725986202128,-500.0,0.00052054,120]
[337715107,1725986202153,-215.71174377,0.00052054,120]
[337715108,1725986202459,150.0,0.00040339,30]
[337715109,1725986203558,301.258,0.00046549,30]
[337715110,1725986204474,150.416,0.00040339,30]
[337715112,1725986365941,176.107264,0.00015983,2]
[337715116,1725986674380,169903.334714,0.00015,2]
[337715117,1725986691650,24640.4227429,0.00015655,2]
[337715119,1725986879467,2836.9742136,0.00025999,60]
[337715120,1725986884459,9575.6549146,0.00015741,2]
[337715121,1725986890220,176.107265,0.00015636,2]
[337715162,1725987031865,-188.61413699,0.00016069,2]
[337715163,1725987031879,-159.519231,0.00016099,2]
[337715164,1725987031888,-2627.8404099,0.00016107,2]
[337715165,1725987031898,-159.519231,0.00016169,2]
[337715166,1725987031907,-159.519231,0.00016239,2]
[337715167,1725987031918,-159.519231,0.00016309,2]
[337715168,1725987031927,-159.519231,0.00016379,2]
[337715169,1725987031936,-159.519231,0.00016449,2]
[337715170,1725987031946,-159.519231,0.00016519,2]
[337715171,1725987031956,-159.519231,0.00016589,2]
[337715172,1725987031966,-159.519231,0.00016659,2]
[337715173,1725987031975,-159.519231,0.00016729,2]
[337715174,1725987031985,-486.6665331,0.00016746,2]
[337715175,1725987031994,-159.519231,0.00016798,2]
[337715176,1725987032005,-159.519231,0.00016868,2]
[337715177,1725987032014,-3379.74334185,0.00016885,2]
[337715178,1725987032024,-1000.0,0.00016887,2]
[337715179,1725987032033,-159.519231,0.00016938,2]
[337715180,1725987032043,-300.0,0.00016972,2]
[337715181,1725987032054,-229.63456092,0.00016973,2]
[337715182,1725987032071,-500.0,0.00016973,2]
[337715183,1725987032081,-549.38006289,0.00016973,2]
[337715184,1725987032090,-500.0,0.00016973,2]
[337715185,1725987032100,-500.0,0.00016973,2]
[337715186,1725987032109,-500.0,0.00016973,2]
[337715187,1725987032118,-500.0,0.00016973,2]
[337715188,1725987032128,-500.0,0.00016973,2]
[337715189,1725987032137,-1047.18,0.00016984,2]
[337715190,1725987032146,-500.0,0.00016984,2]
[337715191,1725987032156,-500.0,0.00016984,2]
[337715192,1725987032165,-500.0,0.00016984,2]
[337715193,1725987032174,-500.0,0.00016984,2]
[337715194,1725987032183,-500.0,0.00016984,2]
[337715195,1725987032193,-483.16746481,0.00016984,2]
[337715196,1725987032205,-16.83253519,0.00016984,2]
[337715197,1725987032215,-500.0,0.00016984,2]
[337715198,1725987032224,-293.13887457,0.00016984,2]
[337715220,1725987037890,-206.86112543,0.00016984,2]
[337715221,1725987037900,-500.0,0.00016984,2]
[337715222,1725987037912,-200.8883007,0.00016984,2]
[337715223,1725987037927,-299.1116993,0.00016984,2]
[337715224,1725987037938,-174.09830125,0.00016984,2]
[337715225,1725987037952,-67.48270732,0.00016984,2]
[337715226,1725987037962,-500.0,0.00016984,2]
[337715227,1725987037972,-500.0,0.00016984,2]
[337715228,1725987037983,-161.70342701,0.00016984,2]
[337715229,1725987037993,-572.9880458,0.00016984,2]
[337715230,1725987038004,-187.21579727,0.00016984,2]
[337715231,1725987038015,-500.0,0.00016985,2]
[337715232,1725987038025,-500.0,0.00016985,2]
[337715233,1725987038034,-500.0,0.00016985,2]
[337715234,1725987038045,-500.0,0.00016985,2]
[337715235,1725987038055,-611.15609238,0.00016985,2]
[337715236,1725987038064,-500.0,0.00016985,2]
[337715237,1725987038074,-500.0,0.00016985,2]
[337715238,1725987038085,-500.0,0.00016985,2]
[337715239,1725987038095,-500.0,0.00016985,2]
[337715240,1725987038105,-472.28217327,0.00016985,2]
[337715241,1725987038117,-500.0,0.00016985,2]
[337715242,1725987038127,-500.0,0.00016985,2]
[337715243,1725987038137,-500.0,0.00016985,2]
[337715244,1725987038149,-177.44703954,0.00016985,2]
[337715245,1725987038158,-553.54,0.00016985,2]
[337715246,1725987038169,-500.0,0.00016985,2]
[337715247,1725987038178,-3884.91,0.00016985,2]
[337715248,1725987038187,-505.96484482,0.00016985,2]
[337715249,1725987038197,-2363.4,0.00016985,2]
[337715250,1725987038206,-500.0,0.00016985,2]
[337715251,1725987038216,-977.86,0.00016985,2]
[337715252,1725987038225,-500.0,0.00016985,2]
[337715253,1725987038234,-1813.25,0.00016985,2]
[337715254,1725987038243,-500.0,0.00016985,2]
[337715255,1725987038253,-500.0,0.00016985,2]
[337715256,1725987038262,-552.29222256,0.00016985,2]
[337715257,1725987038272,-500.0,0.00016985,2]